bitfinex/quotes_SOLUSD_20250806
["timestamp","ask_amount","ask_price","bid_price","bid_amount"]
[1754461799474,39.94883423,163.75,163.74,0.06]
[1754461800264,40.66883423,163.75,163.74,0.06]
[1754461802165,40.66883423,163.75,163.72,0.06]
[1754461802389,8.39224732,163.73,163.72,0.75]
[1754461802582,33.84196401,163.73,163.72,0.75]
[1754461803481,25.44971669,163.73,163.72,0.75]
[1754461803881,33.84196401,163.73,163.72,0.75]
[1754461805475,40.6495802,163.73,163.72,0.06]
[1754461806776,37.63985309,163.73,163.72,0.06]
[1754461807397,37.63985309,163.73,163.71,0.06]
[1754461807602,10.1322369,163.72,163.71,0.06]
[1754461808519,9.84303471,163.72,163.71,0.06]
[1754461808677,18.25295303,163.72,163.71,0.06]
[1754461808879,18.27487126,163.72,163.71,0.06]
[1754461809706,24.3828605,163.72,163.71,0.06]
[1754461809895,39.48907607,163.72,163.71,0.06]
[1754461810095,41.10621557,163.7,163.69,0.06]
[1754461810294,93.41669026,163.7,163.69,0.06]
[1754461810603,94.11669026,163.7,163.69,0.06]
[1754461811410,89.03007353,163.7,163.69,0.06]
[1754461811894,95.13880902,163.7,163.69,0.06]
[1754461813770,81.7981818,163.7,163.69,0.06]
[1754461813977,86.8756682,163.7,163.69,0.06]
[1754461815101,94.90667782,163.7,163.69,0.06]
[1754461815701,103.31659614,163.7,163.69,0.06]
[1754461816106,94.90667782,163.7,163.69,0.06]
[1754461816493,74.25690932,163.7,163.69,0.06]
[1754461816691,65.99196623,163.7,163.69,0.06]
[1754461817315,69.87908351,163.7,163.69,0.06]
[1754461817529,84.98529908,163.7,163.69,0.06]
[1754461817725,93.3952174,163.7,163.69,0.06]
[1754461817943,90.06278548,163.7,163.69,0.06]
[1754461818446,98.4727038,163.7,163.69,0.06]
[1754461819041,98.4727038,163.7,163.69,1e-08]
[1754461819729,41.10621557,163.67,163.66,0.84436321]
[1754461819896,75.00944631,163.67,163.66,0.84436321]
[1754461820300,75.70944631,163.67,163.66,0.84436321]
[1754461820742,75.00944631,163.67,163.66,0.84436321]
[1754461820902,81.1193015,163.67,163.66,0.84436321]
[1754461821342,66.01308593,163.67,163.66,1.56436321]
[1754461822202,66.01308593,163.67,163.66,0.84436321]
[1754461824513,81.8193015,163.67,163.66,0.84436321]
[1754461825543,44.59308593,163.67,163.66,1.56436321]
[1754461825752,66.01308593,163.67,163.66,1.56436321]
[1754461825971,51.49331242,163.67,163.66,1.56436321]
[1754461828025,47.42,163.67,163.66,1.56436321]
[1754461828744,51.46911444,163.67,163.66,1.56436321]
[1754461830052,65.98888795,163.67,163.66,0.84436321]
[1754461830251,66.68888795,163.67,163.66,0.84436321]
[1754461831238,81.79510352,163.67,163.66,0.84436321]
[1754461832452,15.10621557,163.66,163.64,0.06]
[1754461832767,33.87903276,163.65,163.64,0.06]
[1754461832946,49.68524833,163.65,163.64,0.06]
[1754461834142,55.79585022,163.65,163.64,0.06]
[1754461835046,41.10621557,163.63,163.62,0.1]
[1754461835242,74.98524833,163.63,163.62,0.1]
[1754461836470,57.58046321,163.63,163.62,0.1]
[1754461836780,69.18164107,163.63,163.62,0.1]
[1754461837860,54.66037398,163.63,163.62,0.1]
[1754461838184,14.52019858,163.66,163.62,0.78]
[1754461838349,25.46515398,163.65,163.62,0.78]
[1754461838559,21.42,163.65,163.62,0.78]
[1754461839251,21.42,163.65,163.62,9.18991832]
[1754461839450,21.42,163.65,163.63,0.68]
[1754461840174,21.42,163.65,163.64,0.68]
[1754461840175,27.53060189,163.65,163.64,0.68]
[1754461840348,35.94052021,163.65,163.62,0.78]
[1754461840552,35.94052021,163.65,163.62,0.1]
[1754461840553,8.40991832,163.64,163.62,0.1]
[1754461840752,29.82991832,163.63,163.62,0.1]
[1754461841166,34.54636543,163.63,163.62,0.1]
[1754461841492,33.87636543,163.63,163.62,0.1]
[1754461841774,34.54636543,163.63,163.62,0.1]
[1754461842260,40.6577142,163.63,163.62,0.1]
[1754461842461,39.9877142,163.63,163.62,0.1]
[1754461843265,33.87636543,163.63,163.62,0.1]
[1754461843466,29.82991832,163.63,163.62,0.78]
[1754461845197,27.53134877,163.63,163.62,0.78]
[1754461845381,21.42,163.63,163.62,0.78]
[1754461846192,21.42,163.63,163.62,0.1]
[1754461846368,31.58071756,163.63,163.62,0.1]
[1754461846570,25.46936879,163.63,163.62,0.78]
[1754461846756,21.42,163.63,163.62,0.78]
[1754461848061,21.42,163.63,163.62,0.1]
[1754461848257,25.47308525,163.63,163.62,0.1]
[1754461848758,21.42,163.63,163.62,0.78]
[1754461849467,25.47501305,163.63,163.62,0.78]
[1754461849976,21.42,163.63,163.62,0.78]
[1754461850972,21.42,163.63,163.62,9.18991832]
[1754461851190,21.42,163.63,163.62,0.78]
[1754461851384,25.47810378,163.63,163.62,0.78]
[1754461851696,21.42,163.63,163.62,15.3016406]
[1754461855300,21.42,163.63,163.62,41.3016406]
[1754461855870,21.42,163.63,163.62,35.18991832]
[1754461856300,21.42,163.63,163.62,41.3016406]
[1754461856801,21.42,163.63,163.62,26.78]
[1754461857173,21.42,163.63,163.62,35.18991832]
[1754461858713,21.42,163.63,163.62,26.78]
[1754461858907,21.42,163.63,163.62,35.18991832]
[1754461859080,21.42,163.63,163.62,26.1]
[1754461859723,26.15074608,163.63,163.62,26.1]
[1754461860195,25.48074608,163.63,163.62,0.1]
[1754461860714,21.42,163.63,163.62,9.18991832]
[1754461861492,21.42,163.63,163.62,15.3016406]
[1754461863293,0.67,163.69,163.62,15.3016406]
[1754461863294,21.42,163.67,163.62,15.3016406]
[1754461863493,4.06198195,163.66,163.63,0.68]
[1754461863692,21.42,163.67,163.65,8.40991832]
[1754461864012,21.42,163.67,163.66,9.08991832]
[1754461864219,21.42,163.67,163.66,15.20014684]
[1754461864610,0.03,163.71,163.66,30.47571814]
[1754461864798,0.03,163.71,163.7,8.40991832]
[1754461865003,4.09180949,163.71,163.7,8.40991832]
[1754461865305,0.03,163.71,163.7,9.08991832]
[1754461866221,0.03,163.71,163.7,15.19865381]
[1754461866909,0.03,163.71,163.7,23.60857213]
[1754461867097,0.03,163.71,163.7,15.19865381]
[1754461867697,0.03,163.71,163.7,38.7147877]
[1754461868010,0.03,163.71,163.7,15.19865381]
[1754461868701,0.03,163.71,163.7,14.51865381]
[1754461868904,0.03,163.71,163.7,15.19865381]
[1754461869124,0.03,163.71,163.7,23.60857213]
[1754461869608,0.03,163.71,163.7,64.7147877]
[1754461874536,0.03,163.71,163.7,67.6995018]
[1754461875124,0.03,163.71,163.7,156.7995018]
[1754461876135,0.03,163.71,163.7,178.2195018]
[1754461877042,0.03,163.73,163.72,26.0]
[1754461877356,0.03,163.73,163.72,34.40991832]
[1754461877512,0.03,163.73,163.72,35.08991832]
[1754461878634,0.03,163.73,163.72,41.19790756]
[1754461881144,0.71,163.73,163.72,129.61790756]
[1754461881730,0.03,163.73,163.72,129.61790756]
[1754461882644,0.71,163.73,163.72,129.61790756]
[1754461883563,0.03,163.73,163.72,129.61790756]
[1754461884639,0.71,163.73,163.72,129.61790756]
[1754461884836,0.71,163.73,163.72,97.50991832]
[1754461885160,0.71,163.73,163.72,103.61790756]
[1754461885736,0.71,163.73,163.72,97.50991832]
[1754461887036,0.71,163.73,163.72,8.40991832]
[1754461888650,0.71,163.73,163.72,14.51790756]
[1754461888976,0.03,163.73,163.72,14.51790756]
[1754461890062,0.03,163.73,163.72,15.19790756]
[1754461890532,0.03,163.73,163.72,36.61790756]
[1754461890939,0.03,163.73,163.72,125.71790756]
[1754461894276,0.03,163.73,163.72,77.72412313]
[1754461895133,0.03,163.75,163.73,15.10621557]
[1754461895332,0.03,163.75,163.74,29.82991832]
[1754461895534,0.03,163.75,163.74,36.59716151]
[1754461895734,7.16306175,163.79,163.74,51.86526948]
[1754461895972,7.16306175,163.79,163.78,8.40991832]
[1754461897171,7.16306175,163.79,163.77,0.66]
[1754461897369,7.16306175,163.79,163.78,8.40991832]
[1754461897664,7.85306175,163.79,163.78,14.51566993]
[1754461898673,7.16306175,163.79,163.78,14.51566993]
[1754461899249,0.72,163.81,163.78,14.51566993]
[1754461899452,0.72,163.81,163.8,8.40991832]
[1754461899663,0.03,163.81,163.8,8.40991832]
[1754461900263,0.72,163.81,163.8,8.40991832]
[1754461903460,0.72,163.81,163.79,89.1]
[1754461903886,15.23457457,163.81,163.79,89.1]
[1754461904090,8.40991832,163.8,163.79,89.1]
[1754461904259,0.69,163.8,163.79,89.1]
[1754461907268,4.73964624,163.8,163.79,89.1]
[1754461907773,4.73964624,163.8,163.77,8.40991832]
[1754461907975,0.69,163.79,163.77,8.40991832]
[1754461908283,9.09991832,163.79,163.76,89.1]
[1754461908493,0.69,163.78,163.76,89.1]
[1754461909007,0.69,163.78,163.76,97.50991832]
[1754461909804,4.04964624,163.8,163.77,8.40991832]
[1754461910010,4.04964624,163.79,163.77,8.40991832]
[1754461910310,4.73964624,163.8,163.77,8.40991832]
[1754461910469,4.73964624,163.8,163.76,95.86644583]
[1754461910470,4.04964624,163.79,163.78,8.40991832]
[1754461911309,4.04964624,163.79,163.77,8.40991832]
[1754461912813,4.04964624,163.79,163.77,14.51579907]
[1754461913387,4.73964624,163.8,163.77,14.51579907]
[1754461913588,4.73964624,163.8,163.77,103.61579907]
[1754461914397,4.04964624,163.79,163.77,103.61579907]
[1754461914598,4.73964624,163.8,163.77,103.61579907]
[1754461915119,4.04964624,163.8,163.77,89.1]
[1754461915326,4.73964624,163.79,163.77,89.1]
[1754461915533,0.69,163.79,163.77,89.1]
[1754461915729,4.73964624,163.79,163.77,89.1]
[1754461915925,0.69,163.79,163.77,89.1]
[1754461916250,4.73964624,163.79,163.77,89.1]
[1754461916431,0.69,163.78,163.77,89.1]
[1754461916946,4.73964624,163.78,163.77,89.1]
[1754461917146,4.74601428,163.78,163.77,89.1]
[1754461917431,13.1559326,163.78,163.73,26.0]
[1754461917606,13.1559326,163.77,163.73,32.10759694]
[1754461917810,4.74601428,163.76,163.73,32.16759694]
[1754461918007,0.69,163.76,163.73,32.16759694]
[1754461918333,0.69,163.76,163.75,0.06]
[1754461918732,4.74601428,163.76,163.75,0.06]
[1754461918940,0.69,163.76,163.75,0.06]
[1754461919315,4.05601428,163.77,163.75,0.06]
[1754461920435,9.09991832,163.76,163.75,0.06]
[1754461920616,40.68242991,163.76,163.75,0.06]
[1754461925263,33.8859326,163.76,163.75,0.06]
[1754461925545,25.47601428,163.76,163.75,0.06]
[1754461927726,25.47601428,163.76,163.75,0.73]
[1754461928122,25.47601428,163.76,163.75,0.06]
[1754461928326,26.14601428,163.76,163.75,0.06]
[1754461928625,25.47601428,163.76,163.75,0.73]
[1754461930227,25.47601428,163.76,163.75,15.24678854]
[1754461930425,21.44,163.79,163.75,15.24678854]
[1754461930658,4.05322671,163.78,163.76,9.07991832]
[1754461932261,4.05322671,163.78,163.76,15.18627572]
[1754461932441,4.05322671,163.78,163.77,0.67]
[1754461933369,4.05322671,163.78,163.77,15.18604276]
[1754461934529,21.44,163.79,163.77,15.18604276]
[1754461934850,21.44,163.79,163.78,8.40991832]
[1754461935053,25.49417165,163.79,163.78,8.40991832]
[1754461935245,25.49417165,163.79,163.78,9.07991832]
[1754461935447,4.05417165,163.79,163.78,15.18566993]
[1754461935632,0.03,163.8,163.78,104.28566993]
[1754461935830,0.03,163.8,163.79,9.07991832]
[1754461936861,0.03,163.8,163.79,0.67]
[1754461937039,0.03,163.8,163.79,9.07991832]
[1754461937654,0.03,163.8,163.79,15.18529715]
[1754461940167,0.03,163.8,163.79,104.28529715]
[1754461941482,0.03,163.8,163.79,103.61529715]
[1754461942660,0.03,163.8,163.79,95.20537883]
[1754461942861,0.03,163.8,163.79,103.61529715]
[1754461943155,0.03,163.8,163.79,95.20537883]
[1754461943361,0.7,163.8,163.79,89.1]
[1754461943550,0.7,163.8,163.77,89.1]
[1754461944863,0.7,163.8,163.77,95.20609284]
[1754461945066,0.03,163.8,163.78,9.07991832]
[1754461945244,0.03,163.8,163.79,8.40991832]
[1754461945661,0.03,163.8,163.78,8.40991832]
[1754461945979,0.03,163.8,163.79,6.10537883]
[1754461946183,0.03,163.8,163.78,14.51555674]
[1754461946673,0.03,163.8,163.77,103.61592595]
[1754461946883,0.67,163.79,163.77,103.61592595]
[1754461947849,0.67,163.79,163.77,97.50991832]
[1754461948381,0.67,163.78,163.77,89.1]
[1754461949273,0.67,163.79,163.77,89.1]
[1754461949776,0.67,163.79,163.77,95.20612065]
[1754461949980,0.03,163.8,163.77,103.61603897]
[1754461950367,0.7,163.8,163.77,103.61603897]
[1754461950562,0.03,163.8,163.77,104.28603897]
[1754461950879,0.03,163.8,163.79,8.40991832]
[1754461951383,0.03,163.8,163.79,9.07991832]
[1754461951684,0.03,163.8,163.79,15.18529715]
[1754461952173,0.03,163.8,163.79,104.28529715]
[1754461953081,0.03,163.8,163.79,95.87537883]
[1754461953273,0.03,163.8,163.79,104.28529715]
[1754461958086,0.03,163.8,163.79,103.61529715]
[1754461960085,0.03,163.8,163.79,104.28529715]
[1754461961262,0.03,163.8,163.79,119.39151272]
[1754461965978,1e-08,163.8,163.79,119.39151272]
[1754461968995,1e-08,163.8,163.79,127.80143104]
[1754461969591,1e-08,163.81,163.79,127.80143104]
[1754461969903,0.03,163.82,163.81,130.20621556]
[1754461970101,1e-08,163.82,163.81,112.61613388]
[1754461970313,0.03,163.85,163.84,26.0]
[1754461970481,1e-08,163.85,163.84,71.52648545]
[1754461970674,1e-08,163.85,163.84,72.19648545]
[1754461971246,1e-08,163.88,163.87,41.10621557]
[1754461971374,1e-08,163.88,163.87,70.91613389]
[1754461971775,1e-08,163.88,163.87,77.01853213]
[1754461972087,1e-08,163.88,163.87,79.46239913]
[1754461973512,1e-08,163.88,163.87,80.13239913]
[1754461975922,1e-08,163.88,163.87,83.11951013]
[1754461976127,1e-08,163.88,163.87,82.44951013]
[1754461976625,0.68000001,163.88,163.87,82.44951013]
[1754461977923,0.68000001,163.88,163.87,77.01853213]
[1754461978827,0.68000001,163.88,163.87,40.51231656]
[1754461979122,0.68000001,163.88,163.87,26.0]
[1754461979527,0.68000001,163.88,163.87,32.10239824]
[1754461979729,1e-08,163.88,163.87,40.51231656]
[1754461980305,0.68000001,163.88,163.87,32.10239824]
[1754461981826,0.68000001,163.88,163.86,6.10263168]
[1754461982628,0.68000001,163.88,163.86,14.51255]
[1754461983931,1e-08,163.88,163.86,14.51255]
[1754461984107,0.68,163.87,163.84,32.10342606]
[1754461984424,0.68,163.87,163.84,129.61334438]
[1754461984618,0.68,163.87,163.84,34.40991832]
[1754461984799,9.08991832,163.87,163.83,6.10380203]
[1754461985005,8.40991832,163.87,163.83,6.10380203]
[1754461985204,0.68,163.86,163.83,6.10380203]
[1754461986199,0.68,163.86,163.83,8.40991832]
[1754461987397,8.40991833,163.88,163.83,8.40991832]
[1754461987602,0.68,163.87,163.83,8.40991832]
[1754461988535,0.68,163.87,163.82,6.10426077]
[1754461988709,0.68,163.87,163.83,8.40991832]
[1754461988905,1e-08,163.88,163.85,8.40991832]
[1754461989107,1e-08,163.88,163.86,8.40991832]
[1754461989318,1e-08,163.88,163.87,8.40991832]
[1754461990624,0.68000001,163.88,163.87,8.40991832]
[1754461990818,1e-08,163.88,163.87,14.51231656]
[1754461991023,1e-08,163.88,163.87,8.40991832]
[1754461991636,1e-08,163.88,163.86,14.51260086]
[1754461992138,0.68000001,163.88,163.86,14.51260086]
[1754461993132,1e-08,163.88,163.86,14.51260086]
[1754461993527,1e-08,163.88,163.86,103.61260086]
[1754461997149,1e-08,163.88,163.86,104.30260086]
[1754461998024,1e-08,163.88,163.87,9.09991832]
[1754461998527,1e-08,163.88,163.87,8.40991832]
[1754461999225,1e-08,163.88,163.87,14.51231656]
[1754461999424,1e-08,163.88,163.87,103.61231656]
[1754461999855,1e-08,163.88,163.87,104.30231656]
[1754462000958,1e-08,163.88,163.87,30.91877195]
[1754462002251,1e-08,163.88,163.87,120.01877195]
[1754462002426,1e-08,163.88,163.87,119.40853213]
[1754462002930,1e-08,163.88,163.87,144.71853213]
[1754462003137,1e-08,163.88,163.87,129.61231656]
[1754462003469,1e-08,163.88,163.87,121.20239824]
[1754462003624,1e-08,163.88,163.87,129.61231656]
[1754462003926,1e-08,163.88,163.87,121.20239824]
[1754462004130,0.68000001,163.88,163.87,129.61231656]
[1754462004522,1e-08,163.88,163.87,129.61231656]
[1754462004722,1e-08,163.88,163.87,121.20239824]
[1754462004946,0.68000001,163.88,163.87,95.20239824]
[1754462005369,0.68000001,163.88,163.87,6.10239824]
[1754462005565,1e-08,163.88,163.87,14.51231656]
[1754462005776,1e-08,163.88,163.87,41.20231656]
[1754462006443,1e-08,163.88,163.87,40.51231656]
[1754462007073,0.68000001,163.88,163.87,40.51231656]
[1754462007669,1e-08,163.88,163.87,40.51231656]
[1754462007874,0.68000001,163.88,163.87,26.0]
[1754462008175,0.68000001,163.88,163.87,40.51231656]
[1754462008354,1e-08,163.88,163.87,40.51231656]
[1754462008554,0.68000001,163.88,163.87,40.51231656]
[1754462009057,0.68000001,163.88,163.87,32.10239824]
[1754462009955,1e-08,163.88,163.87,40.51231656]
[1754462010871,1e-08,163.88,163.87,32.10239824]
[1754462011076,1e-08,163.88,163.87,40.51231656]
[1754462011248,1e-08,163.88,163.87,129.61231656]
[1754462011867,1e-08,163.88,163.87,130.30231656]
[1754462015872,1e-08,163.88,163.87,121.20239824]
[1754462016190,1e-08,163.88,163.87,129.61231656]
[1754462016483,1e-08,163.88,163.87,130.30231656]
[1754462017006,1e-08,163.88,163.87,129.61231656]
[1754462017290,1e-08,163.88,163.87,145.40853213]
[1754462018255,1e-08,163.88,163.87,119.40853213]
[1754462018870,0.2,163.89,163.87,119.40853213]
[1754462018871,1e-08,163.89,163.88,41.10621557]
[1754462019156,1e-08,163.89,163.88,46.19633647]
[1754462020055,1e-08,163.89,163.88,52.29836234]
[1754462021673,1e-08,163.89,163.88,54.74193134]
[1754462021985,1e-08,163.9,163.88,291.44193134]
[1754462022284,1e-08,163.9,163.89,24.20613389]
[1754462023590,1e-08,163.9,163.89,33.36122378]
[1754462025795,1e-08,163.9,163.89,32.06105843]
[1754462025971,1e-08,163.9,163.89,121.85105843]
[1754462031861,0.03,163.92,163.91,104.20621556]
[1754462032065,0.03,163.92,163.91,133.99613388]
[1754462032293,0.03,163.92,163.91,134.68613388]
[1754462032479,0.03,163.92,163.91,137.12940488]
[1754462033195,0.03,163.92,163.91,136.43940488]
[1754462033382,0.74,163.92,163.91,125.58621556]
[1754462033701,0.74,163.92,163.91,136.43940388]
[1754462033903,0.74,163.92,163.91,142.54031291]
[1754462034066,0.03,163.92,163.91,142.54031291]
[1754462035901,0.03,163.92,163.91,140.09704291]
[1754462036600,0.03,163.92,163.91,142.54031291]
[1754462037476,0.03,163.95,163.94,104.00621555]
[1754462037685,0.03,163.95,163.94,133.79613387]
[1754462038993,0.03,163.95,163.94,125.38621555]
[1754462039174,0.74,163.95,163.94,125.38621555]
[1754462039380,0.74,163.95,163.94,133.79613387]
[1754462039585,0.74,163.95,163.94,139.89592647]
[1754462039776,0.03,163.95,163.94,139.89592647]
[1754462040497,0.74,163.95,163.94,118.51592647]
[1754462040804,0.74,163.95,163.94,139.89592647]
[1754462042196,0.03,163.95,163.94,139.89592647]
[1754462044488,1e-08,163.95,163.94,140.57592647]
[1754462046907,0.2,163.97,163.96,112.21613386]
[1754462047108,0.92,163.97,163.96,133.59613386]
[1754462047785,0.92,163.97,163.96,139.6951824]
[1754462049314,0.92,163.97,163.96,88.69999997]
[1754462049482,9.32991832,163.97,163.96,88.69999997]
[1754462049680,0.92,163.97,163.96,94.79904851]
[1754462050297,0.92,163.97,163.96,88.69999997]
[1754462051006,0.92,163.97,163.96,94.79904851]
[1754462051898,0.92,163.97,163.96,88.69999997]
[1754462052805,0.92,163.97,163.96,94.79904851]
[1754462053904,0.92,163.97,163.96,88.69999997]
[1754462054778,9.32991832,163.97,163.96,88.69999997]
[1754462054998,15.4285949,163.97,163.96,87.97999997]
[1754462055197,40.88246125,163.97,163.87,88.03999997]
[1754462055416,8.40991832,163.89,163.87,88.03999997]
[1754462055716,9.12991832,163.88,163.87,0.06]
[1754462055915,0.72,163.88,163.87,0.06]
[1754462056120,9.12991832,163.88,163.87,0.06]
[1754462056713,15.23194419,163.88,163.87,0.06]
[1754462056896,19.30084615,163.88,163.87,0.06]
[1754462058298,15.23194419,163.88,163.87,0.06]
[1754462058509,9.12991832,163.88,163.87,0.06]
[1754462059194,0.72,163.9,163.87,0.06]
[1754462059393,0.72,163.92,163.87,0.74]
[1754462059710,9.12991832,163.91,163.87,0.74]
[1754462059918,8.40991832,163.92,163.87,9.14991832]
[1754462060088,8.40991832,163.92,163.88,0.68]
[1754462060411,29.78991832,163.94,163.9,6.10128126]
[1754462060624,30.50991832,163.94,163.9,6.78128126]
[1754462061219,0.72,163.93,163.9,6.10128126]
[1754462061522,9.12991832,163.93,163.9,6.10128126]
[1754462062288,29.78991832,163.94,163.9,6.78128126]
[1754462062490,29.78991832,163.94,163.9,6.10128126]
[1754462062712,9.12991832,163.93,163.9,6.10128126]
[1754462064702,9.12991832,163.93,163.9,6.78128126]
[1754462064903,8.40991832,163.93,163.9,6.78128126]
[1754462065420,29.78991832,163.94,163.9,6.78128126]
[1754462065624,0.72,163.93,163.89,6.10165354]
[1754462065802,0.72,163.93,163.89,15.19157186]
[1754462066202,9.12991832,163.92,163.88,94.08192065]
[1754462066427,0.72,163.91,163.88,87.97999997]
[1754462067293,0.72,163.9,163.88,87.97999997]
[1754462067695,9.12991832,163.89,163.88,87.97999997]
[1754462067895,0.72,163.9,163.88,87.97999997]
[1754462068120,9.12991832,163.9,163.88,87.97999997]
[1754462068807,21.38,163.94,163.88,94.08189523]
[1754462069012,8.40991832,163.92,163.88,94.76189523]
[1754462069308,9.12991832,163.93,163.89,0.68]
[1754462069621,9.12991832,163.93,163.89,6.78137342]
[1754462070000,8.40991832,163.93,163.9,0.68]
[1754462070502,9.12991832,163.93,163.89,6.10137342]
[1754462070702,9.12991832,163.93,163.89,6.78137342]
[1754462071431,8.40991832,163.93,163.89,6.10137342]
[1754462071637,8.40991832,163.91,163.88,94.08189238]
[1754462071932,0.72,163.9,163.88,94.08189238]
[1754462072234,8.40991832,163.9,163.88,87.97999997]
[1754462072433,8.40991832,163.91,163.88,94.08202584]
[1754462072730,9.12991832,163.91,163.88,94.08202584]
[1754462074905,8.40991832,163.91,163.88,94.80202584]
[1754462076531,8.40991832,163.92,163.89,0.72]
[1754462078503,9.10991832,163.92,163.88,6.10202587]
[1754462078704,8.40991832,163.93,163.89,0.72]
[1754462078909,28.17981752,163.94,163.9,0.72]
[1754462079139,8.40991832,163.93,163.9,0.72]
[1754462079327,9.10991832,163.93,163.88,15.23194419]
[1754462079506,0.7,163.93,163.89,0.72]
[1754462079708,9.10991832,163.93,163.9,0.72]
[1754462080334,9.10991832,163.93,163.88,14.51194419]
[1754462080519,9.10991832,163.93,163.87,0.06]
[1754462080727,8.40991832,163.92,163.89,0.72]
[1754462082137,8.40991832,163.92,163.89,6.82150606]
[1754462083038,8.40991832,163.93,163.9,0.72]
[1754462083746,9.10991832,163.92,163.89,6.10150606]
[1754462083916,8.40991832,163.91,163.87,0.06]
[1754462084118,8.40991832,163.9,163.87,0.06]
[1754462084337,9.10991832,163.9,163.87,0.06]
[1754462086244,8.40991832,163.9,163.87,0.06]
[1754462086441,0.7,163.89,163.87,0.06]
[1754462086628,8.40991832,163.88,163.87,0.06]
[1754462086828,9.10991832,163.88,163.87,0.06]
[1754462087009,8.40991832,163.88,163.87,0.06]
[1754462087327,8.40991832,163.89,163.87,0.06]
[1754462087520,9.10991832,163.89,163.87,0.06]
[1754462087714,0.7,163.89,163.87,0.06]
[1754462088027,8.40991832,163.89,163.87,0.06]
[1754462088225,9.10991832,163.89,163.87,0.06]
[1754462089015,8.40991832,163.89,163.87,0.06]
[1754462090147,0.7,163.89,163.87,0.06]
[1754462092361,9.10991832,163.89,163.87,0.06]
[1754462097143,9.10991832,163.88,163.87,0.06]
[1754462097527,34.56035054,163.88,163.87,0.06]
[1754462099459,40.66237641,163.88,163.87,0.06]
[1754462100259,76.09418419,163.88,163.85,0.06]
[1754462100427,8.40991832,163.86,163.85,0.06]
[1754462100621,12.48035054,163.86,163.85,0.06]
[1754462100870,13.18035054,163.86,163.85,0.06]
[1754462101421,19.28312119,163.86,163.85,0.06]
[1754462102953,4.07043222,163.86,163.85,0.06]
[1754462103159,4.07043222,163.86,163.85,0.78]
[1754462103160,21.38,163.86,163.85,0.78]
[1754462104370,21.38,163.86,163.85,0.06]
[1754462105461,21.38,163.86,163.85,0.76]
[1754462107269,21.38,163.86,163.85,0.06]
[1754462107787,29.78991832,163.86,163.85,0.06]
[1754462108141,30.48991832,163.86,163.85,0.06]
[1754462108372,21.38,163.86,163.85,0.06]
[1754462108668,21.38,163.86,163.85,0.76]
[1754462109048,21.38,163.86,163.85,6.86314311]
[1754462109851,21.38,163.86,163.85,15.27306143]
[1754462115162,0.03,163.87,163.85,15.27306143]
[1754462115485,0.03,163.87,163.86,9.10991832]
[1754462116284,0.03,163.87,163.86,15.21268897]
[1754462117883,0.03,163.87,163.86,6.80277065]
[1754462118191,0.03,163.87,163.86,6.10277065]
[1754462118776,0.03,163.87,163.86,6.80277065]
[1754462119269,0.03,163.87,163.86,15.21268897]
[1754462120262,0.03,163.87,163.86,6.80277065]
[1754462120863,0.03,163.87,163.86,15.21268897]
[1754462123287,0.03,163.87,163.85,14.57291484]
[1754462123472,0.03,163.87,163.85,6.16299652]
[1754462123473,0.73,163.87,163.85,6.16299652]
[1754462123896,0.03,163.87,163.85,0.06]
[1754462124080,0.7,163.86,163.85,0.06]
[1754462125791,8.43991832,163.87,163.85,0.76]
[1754462125792,0.03,163.87,163.85,0.76]
[1754462125989,0.03,163.87,163.86,8.40991832]
[1754462126364,0.03,163.87,163.85,0.06]
[1754462127358,8.43991832,163.87,163.85,0.06]
[1754462127588,0.7,163.86,163.85,0.06]
[1754462128189,9.10991832,163.86,163.85,0.06]
[1754462128360,0.7,163.86,163.85,0.06]